bitfinex/quotes_ETHUSD_20250129
["timestamp","ask_amount","ask_price","bid_price","bid_amount"]
[1738121628968,7.00929,3117.3,3116.7,3.20849]
[1738121629257,7.00928,3117.3,3116.7,3.20849]
[1738121629463,7.00928,3117.3,3116.8,0.03074415]
[1738121630760,3.0,3117.3,3116.9,3.20831]
[1738121630907,3.0,3117.3,3117.1,3.20807]
[1738121631307,3.0,3117.3,3117.2,0.03074415]
[1738121632421,6.1218,3117.7,3117.3,3.20787]
[1738121632610,0.8206,3118.0,3117.5,3.20768]
[1738121632817,4.02779,3118.0,3117.5,3.93417265]
[1738121633016,4.02779,3118.0,3117.6,0.03060444]
[1738121633237,3.8206,3118.0,3117.6,0.03060444]
[1738121633853,0.8206,3118.0,3117.6,3.23813444]
[1738121634013,3.8206,3118.2,3117.6,3.99652074]
[1738121634215,3.0,3118.2,3117.6,3.99652074]
[1738121634649,3.0,3118.2,3117.6,3.96444588]
[1738121634951,3.20692,3118.3,3117.7,0.3996518]
[1738121635267,0.8206,3118.7,3118.0,3.20711]
[1738121635547,3.0,3118.5,3118.0,3.20711]
[1738121635753,3.0,3118.5,3118.1,0.03029021]
[1738121640364,3.0,3118.5,3117.8,4.02466]
[1738121640654,3.0,3118.3,3117.9,0.03020643]
[1738121641080,0.7939,3118.2,3117.9,0.03020643]
[1738121641224,3.20718,3118.0,3117.9,0.03020643]
[1738121641429,3.20718,3118.0,3117.5,0.64504114]
[1738121641640,3.20718,3118.0,3117.9,0.03007379]
[1738121641940,0.7939,3117.9,3117.5,0.64504114]
[1738121642132,3.20747,3117.8,3117.1,3.20808]
[1738121642331,0.7939,3117.9,3117.1,3.20808]
[1738121642561,3.20749,3117.7,3117.1,3.20808]
[1738121642764,3.20749,3117.7,3117.2,0.40567575]
[1738121643360,4.0012,3117.9,3117.2,3.61360575]
[1738121643361,3.20742,3117.8,3117.2,3.61360575]
[1738121644566,3.20742,3117.8,3117.4,0.63321201]
[1738121645365,3.20742,3117.8,3117.2,3.61360575]
[1738121645662,3.2075,3117.7,3117.1,3.2081]
[1738121645965,3.2075,3117.7,3117.2,0.65099201]
[1738121646568,3.20783,3117.4,3116.8,0.7898]
[1738121646745,3.20783,3117.4,3116.7,3.20849]
[1738121646746,6.20798,3117.3,3116.7,3.20849]
[1738121647068,6.20798,3117.3,3116.7,3.929188]
[1738121647932,0.8115,3117.2,3116.5,3.99849]
[1738121648132,3.20817,3117.1,3116.5,3.99849]
[1738121648455,3.20817,3117.1,3116.6,3.20862]
[1738121649044,3.20817,3117.1,3116.5,1.44072783]
[1738121649948,3.20817,3117.1,3116.5,4.64943783]
[1738121650278,3.20817,3117.1,3116.5,5.43527061]
[1738121651331,3.20817,3117.1,3116.6,3.20861]
[1738121653347,0.8115,3117.2,3116.8,3.20841]
[1738121653551,0.8115,3117.2,3116.6,3.20861]
[1738121653736,3.20811,3117.1,3116.6,3.20861]
[1738121654567,3.0,3117.4,3116.8,3.20841]
[1738121654769,3.7612,3117.4,3116.9,3.20829]
[1738121654955,3.7612,3117.4,3116.8,3.20841]
[1738121655270,6.96901,3117.4,3116.8,3.20841]
[1738121655468,3.7612,3117.4,3116.9,0.03084893]
[1738121655770,3.0,3117.4,3117.0,3.9873]
[1738121655934,5.37,3117.5,3117.2,3.20798]
[1738121656140,3.96855,3117.9,3117.3,3.20788]
[1738121656353,3.20739,3117.8,3117.3,0.03095365]
[1738121656547,3.0,3117.7,3117.3,0.03095365]
[1738121656749,3.0,3117.7,3117.3,0.03207704]
[1738121656967,3.20708,3118.1,3117.5,3.20763]
[1738121657159,3.0,3118.0,3117.5,3.98693]
[1738121657362,3.0,3118.0,3117.6,0.03095365]
[1738121659562,3.0,3118.0,3117.6,3.23854365]
[1738121659762,3.7958,3118.2,3117.8,3.20734]
[1738121659967,3.0,3118.2,3117.8,3.20734]
[1738121660166,3.0,3118.2,3117.9,0.03095365]
[1738121660885,0.7696,3118.4,3117.9,0.03095365]
[1738121661063,3.0,3118.3,3117.9,3.20728]
[1738121661272,3.0,3118.3,3118.0,0.03095365]
[1738121661273,6.20688,3118.3,3118.0,0.03095365]
[1738121661589,3.0,3118.3,3117.8,3.20738]
[1738121661790,6.20688,3118.3,3117.9,0.03095365]
[1738121661959,3.0,3118.3,3117.9,0.03095365]
[1738121662161,8.57658,3118.6,3118.0,3.2071]
[1738121662386,5.37,3118.6,3118.2,3.20694]
[1738121662592,3.0,3118.5,3118.3,0.03095365]
[1738121662956,5.37,3118.6,3118.1,0.7638]
[1738121663251,3.0,3118.5,3118.1,0.7638]
[1738121663493,3.0,3118.5,3118.2,3.23789365]
[1738121663685,3.0,3118.5,3118.2,0.03095365]
[1738121663888,3.0,3118.5,3118.1,1.19648017]
[1738121664186,3.0,3118.5,3118.3,0.03095365]
[1738121664490,3.0,3118.5,3118.4,0.03095365]
[1738121664656,3.0,3118.5,3118.1,4.40353017]
[1738121664858,3.0,3118.5,3118.4,0.03095365]
[1738121665058,3.0,3118.5,3118.2,0.76106302]
[1738121665253,3.0,3118.5,3118.4,0.03095365]
[1738121665456,3.0,3118.5,3118.1,4.40353017]
[1738121665654,3.0,3118.5,3118.4,0.03095365]
[1738121665856,3.0,3118.6,3118.1,1.19648017]
[1738121666057,3.20664,3118.6,3118.1,1.19648017]
[1738121666258,3.20664,3118.6,3118.2,0.03095365]
[1738121666795,3.20664,3118.6,3118.3,0.03095365]
[1738121667160,3.20664,3118.6,3118.1,4.40355017]
[1738121667361,3.20664,3118.6,3118.4,0.03095365]
[1738121667568,3.7696,3118.7,3118.1,4.40355017]
[1738121667773,0.7783,3119.0,3118.2,3.96795502]
[1738121667991,3.20637,3118.8,3118.2,3.96795502]
[1738121668159,3.0,3118.7,3118.3,0.03016465]
[1738121668685,3.0,3118.7,3118.4,0.03016465]
[1738121669061,6.20627,3118.9,3118.4,0.03016465]
[1738121670761,3.7783,3119.0,3118.4,0.78272851]
[1738121670962,3.0,3119.0,3118.6,3.20649]
[1738121671390,3.0,3119.0,3118.7,0.03016465]
[1738121672285,3.0,3119.0,3118.5,3.98556]
[1738121672481,3.0,3119.0,3118.8,0.03016465]
[1738121672701,3.0,3119.0,3118.5,3.98556]
[1738121672862,3.0,3119.0,3118.9,0.03016465]
[1738121673289,3.0,3119.0,3118.6,3.20654]
[1738121673500,3.0,3119.0,3118.9,0.03016465]
[1738121673683,6.20615,3119.0,3118.5,0.7789]
[1738121673884,6.20615,3119.0,3118.9,0.03016465]
[1738121674090,6.20615,3119.0,3118.5,3.98555]
[1738121674265,6.20615,3119.0,3118.9,0.03016465]
[1738121674467,6.20615,3119.0,3118.5,4.704773]
[1738121674797,5.37,3119.1,3118.5,4.704773]
[1738121674798,3.0,3119.1,3118.9,0.03016465]
[1738121674993,3.0,3119.1,3118.7,3.20643]
[1738121675192,3.0,3119.1,3119.0,0.03016465]
[1738121675702,3.0,3119.1,3118.6,3.20649]
[1738121676000,3.0,3119.1,3119.0,0.03016465]
[1738121676197,3.0,3119.1,3118.6,3.20649]
[1738121676402,3.0,3119.1,3119.0,0.03016465]
[1738121676888,3.0,3119.1,3118.6,3.20649]
[1738121677090,3.0,3119.1,3119.0,0.02897784]
[1738121677398,3.0,3119.1,3118.6,3.20649]
[1738121677605,3.0,3119.1,3119.0,0.02897784]
[1738121677767,3.0,3119.1,3118.7,3.604989]
[1738121677974,3.0,3119.1,3119.0,0.02897784]
[1738121678477,3.0,3119.1,3118.7,3.604989]
[1738121678699,3.0,3119.1,3118.7,0.398539]
[1738121678906,3.0,3119.1,3118.8,0.02897784]
[1738121679083,3.0,3119.1,3118.5,7.19214]
[1738121679284,3.0,3119.1,3118.9,0.02897784]
[1738121679593,3.0,3119.1,3118.5,7.19214]
[1738121679793,3.0,3119.1,3119.0,0.02897784]
[1738121679993,3.0,3119.1,3118.5,7.19214]
[1738121680198,3.0,3119.1,3119.0,0.02897784]
[1738121680385,3.0,3119.1,3118.7,3.20645]
[1738121680586,3.0,3119.1,3119.0,0.02897784]
[1738121681096,3.0,3119.1,3118.7,3.20645]
[1738121681297,3.0,3119.1,3119.0,0.02897784]
[1738121681535,3.0,3119.1,3118.7,3.20645]
[1738121681669,3.0,3119.1,3119.0,0.02897784]
[1738121681873,3.0,3119.1,3118.5,3.98549]
[1738121682107,3.0,3119.1,3119.0,0.02855911]
[1738121682308,3.0,3119.1,3118.5,7.19209]
[1738121682514,3.0,3119.1,3119.0,0.02855911]
[1738121682810,3.0,3119.1,3118.5,7.19209]
[1738121683012,6.20605,3119.1,3119.0,0.02855911]
[1738121683507,3.20683,3118.4,3117.7,0.7815]
[1738121683705,3.96123,3118.4,3117.9,3.20727]
[1738121684018,3.96123,3118.4,3118.1,0.02858004]
[1738121684215,3.96123,3118.4,3117.8,3.20738]
[1738121684514,3.96123,3118.4,3117.9,0.398888]
[1738121684685,3.96123,3118.4,3117.9,0.42746804]
[1738121684890,3.96123,3118.4,3117.9,3.63474804]
[1738121686179,0.7544,3118.4,3117.9,3.63474804]
[1738121687014,0.7544,3118.4,3118.0,3.20717]
[1738121687177,0.7544,3118.4,3118.0,3.8913718]
[1738121687374,0.7544,3118.4,3118.1,0.02887314]
[1738121687601,0.8041,3118.7,3118.1,3.23585314]
[1738121687804,3.8041,3118.7,3118.2,0.8074]
[1738121687993,3.8041,3118.7,3118.1,3.23585314]
[1738121687994,3.20662,3118.6,3118.1,0.02887314]
[1738121688193,3.20662,3118.6,3118.0,3.20718]
[1738121688418,3.20662,3118.6,3118.2,0.02887314]
[1738121688619,3.20662,3118.6,3118.1,0.02891501]
[1738121688821,3.20662,3118.6,3118.1,3.20705]
[1738121689322,3.8041,3118.7,3117.9,4.65622572]
[1738121689323,3.20668,3118.5,3118.2,0.02891501]
[1738121689485,3.20668,3118.5,3117.9,4.65622572]
[1738121689686,3.20668,3118.5,3118.3,0.02897783]
[1738121689995,3.20668,3118.5,3117.9,4.65622572]
[1738121690190,3.20668,3118.5,3118.4,0.02897783]
[1738121690402,3.20668,3118.5,3118.0,3.20717]
[1738121690724,3.20668,3118.5,3118.1,0.02897783]
[1738121693011,7.0106,3118.7,3118.1,0.02897783]
[1738121693245,3.8041,3118.7,3118.1,3.23603783]
[1738121693613,3.20659,3118.6,3118.1,3.23603783]
[1738121695732,3.8041,3118.7,3118.3,3.20687]
[1738121696399,3.8041,3118.7,3118.4,0.0293128]
[1738121696935,3.2061,3119.1,3118.6,3.20656]
[1738121696936,3.7585,3119.1,3118.6,3.20656]
[1738121697103,6.96457,3119.1,3118.5,0.02923602]
[1738121697431,6.96457,3119.1,3118.5,3.20666]
[1738121697634,6.96457,3119.1,3118.6,0.02911737]
[1738121698020,6.96457,3119.1,3118.6,3.23565737]
[1738121698421,0.7585,3119.1,3118.6,3.23565737]
[1738121698800,0.7585,3119.1,3118.6,3.87988211]
[1738121699253,6.96458,3119.1,3118.6,0.67334211]
[1738121699536,6.96458,3119.1,3118.6,0.02911737]
[1738121702337,3.20616,3119.0,3118.6,0.02911737]
[1738121703240,6.96458,3119.1,3118.6,3.23566737]
[1738121703746,3.0,3119.2,3118.6,0.79971737]
[1738121703913,9.39069,3119.5,3118.9,3.20615]
[1738121704233,3.0,3119.4,3118.9,3.20615]
[1738121704614,3.0,3119.4,3119.0,0.0291104]
[1738121705015,3.0,3119.2,3119.0,0.0291104]
[1738121705210,3.0,3119.2,3118.6,3.97711]
[1738121705413,6.20595,3119.2,3119.1,0.0291104]
[1738121705637,6.20595,3119.2,3118.7,0.397711]
[1738121705638,3.20616,3119.0,3118.4,3.20674]
[1738121706935,3.20616,3119.0,3118.5,3.20665]
[1738121707242,6.20582,3119.4,3118.8,3.20629]
[1738121708541,6.20582,3119.4,3118.9,3.20625]
[1738121708717,3.0,3119.4,3119.0,3.20614]
[1738121708900,3.0,3119.4,3118.8,6.41256]
[1738121709105,3.0,3119.4,3118.8,3.926466]
[1738121709305,3.0,3119.4,3118.9,3.20623]
[1738121709736,3.0,3119.4,3119.0,0.7541]
[1738121711142,3.0,3119.2,3118.8,3.926466]
[1738121712240,3.0,3119.4,3118.8,3.926466]
[1738121712417,6.20575,3119.4,3118.8,3.926466]
[1738121713954,9.3576,3119.5,3118.8,3.926466]
[1738121713955,6.20598,3119.2,3118.8,0.720196]
[1738121714115,3.0,3119.2,3118.7,0.7541]
[1738121714311,3.0,3119.2,3118.7,3.96054]
[1738121714637,6.20595,3119.2,3118.7,3.96054]
[1738121714835,3.0,3119.2,3118.7,3.96054]
[1738121715239,3.0,3119.2,3118.8,0.02876846]
[1738121715448,6.20595,3119.2,3118.8,0.02876846]
[1738121715755,6.20595,3119.2,3118.9,0.02876846]
[1738121715918,6.20595,3119.2,3118.7,3.96054]
[1738121716118,6.20595,3119.2,3118.7,4.67726]
[1738121716356,6.41244,3119.0,3118.8,0.02876846]
[1738121716567,3.20632,3118.9,3118.3,3.20683]
[1738121716773,6.41267,3118.9,3118.3,3.20683]
[1738121716924,3.20632,3118.9,3118.2,0.7853]
[1738121717125,6.20578,3119.4,3118.1,8.58703]
[1738121717126,3.20668,3118.5,3118.1,5.38]
[1738121717479,3.20679,3118.4,3117.7,0.7853]
[1738121717642,0.7985,3118.3,3117.6,3.20749]
[1738121717958,3.20705,3118.2,3117.6,3.20749]
[1738121718259,3.20705,3118.2,3117.6,3.23956278]
[1738121718425,3.20705,3118.2,3117.7,3.20748]
[1738121718624,3.20705,3118.2,3117.6,3.20749]
[1738121718854,3.20705,3118.2,3117.6,3.53179991]
[1738121719226,3.7985,3118.3,3117.8,3.20735]
[1738121719536,7.00538,3118.3,3117.6,6.73929991]
[1738121720060,7.00538,3118.3,3117.7,3.20742]
[1738121720449,7.00538,3118.3,3117.5,1.42751331]
[1738121720450,3.20709,3118.1,3117.5,1.42751331]
[1738121720623,3.20709,3118.1,3117.2,6.50372]
[1738121720624,3.20739,3117.8,3117.2,6.50372]
[1738121720827,3.20739,3117.8,3117.2,7.474913]
[1738121721148,4.02039,3117.8,3117.2,7.474913]
[1738121721321,4.02039,3117.8,3117.2,2.541]
[1738121721525,0.813,3117.8,3117.2,2.541]
[1738121721724,3.7879,3118.0,3117.4,3.20772]
[1738121721926,6.99514,3118.0,3117.4,3.20772]
[1738121722549,3.7879,3118.0,3117.5,3.20767]
[1738121722936,3.99478,3118.3,3117.5,0.7859156]
[1738121723261,3.99478,3118.3,3117.6,3.20749]
[1738121723637,3.99478,3118.3,3117.7,3.20746]
[1738121723837,3.99478,3118.3,3117.8,3.20738]
[1738121725759,0.7879,3118.3,3117.8,6.41469]
[1738121725958,0.7879,3118.3,3117.8,3.20731]
[1738121727272,3.0,3118.1,3117.6,3.20752]
[1738121729886,0.7879,3118.3,3117.6,3.849172]
[1738121730051,3.7879,3118.3,3117.8,3.20737]
[1738121730690,3.7879,3118.3,3117.9,0.02975258]
[1738121732601,3.7879,3118.3,3117.9,0.08873904]
[1738121732984,3.0,3118.3,3118.1,3.20702]
[1738121733297,3.0,3118.4,3118.0,0.08872508]
[1738121733599,3.0,3118.4,3118.1,0.08872508]
[1738121733777,3.0,3118.4,3117.9,3.20724]
[1738121734135,3.0,3118.4,3118.2,0.0886413]
[1738121734299,3.0,3118.4,3118.1,3.20707]
[1738121734793,3.0,3118.4,3118.2,0.0886413]
[1738121735003,3.0,3118.4,3118.1,3.53984803]
[1738121735167,3.0,3118.4,3118.3,0.0886413]
[1738121735372,3.0,3118.4,3118.1,3.53984803]
[1738121735600,3.0,3118.4,3118.3,0.0886413]
[1738121735808,3.0,3118.4,3118.1,3.53984803]
[1738121736120,3.0,3118.4,3118.3,0.0886413]
[1738121736420,5.37,3118.7,3118.4,3.20676]
[1738121736717,3.96266,3119.1,3118.4,3.20669]
[1738121736925,3.0,3119.0,3118.5,3.2066]
[1738121737123,3.0,3119.0,3118.5,3.2952413]
[1738121737488,3.20616,3119.0,3118.5,0.0886413]
[1738121737925,3.0,3119.0,3118.6,0.0886413]
[1738121738089,6.20615,3119.0,3118.6,0.0886413]
[1738121738415,6.20615,3119.0,3118.4,3.20671]
[1738121738591,6.20615,3119.0,3118.7,0.0886413]
[1738121738915,3.0,3119.0,3118.4,3.20671]
[1738121739129,3.96266,3119.1,3118.6,3.2065]
[1738121739130,0.7566,3119.1,3118.6,3.2065]
[1738121739291,3.0,3119.2,3118.6,3.2065]
[1738121739493,3.0,3119.2,3118.6,3.53035646]
[1738121739706,0.8081,3119.3,3118.7,0.08828534]
[1738121739890,3.0,3119.4,3118.9,6.41236]
[1738121740309,3.0,3119.4,3119.0,0.08822253]
[1738121741705,6.20574,3119.4,3119.0,0.08822253]
[1738121743028,3.0,3119.4,3119.0,3.29436253]
[1738121744300,3.8081,3119.6,3119.0,3.70601468]
[1738121744501,6.1888,3119.8,3119.3,3.20577]
[1738121744816,0.8188,3120.0,3119.4,3.32502421]
[1738121745150,5.37,3120.3,3119.7,3.20536]
[1738121745151,0.8188,3120.2,3119.7,3.20536]
[1738121745353,0.8188,3120.2,3119.8,3.20527]
[1738121745833,0.8188,3120.2,3119.8,3.29252954]
[1738121746248,0.8188,3120.2,3119.8,0.08725954]
[1738121746398,3.58697,3120.1,3119.8,0.08725954]
[1738121746598,3.20509,3120.1,3119.8,0.08725954]
[1738121746895,3.20509,3120.1,3119.9,0.08698052]
[1738121747228,3.20509,3120.1,3119.6,3.20553]
[1738121747422,3.20509,3120.1,3120.0,0.08698052]
[1738121747624,3.20509,3120.1,3119.6,3.20553]
[1738121747795,3.20509,3120.1,3120.0,0.08698052]
[1738121748721,3.8188,3120.2,3120.0,0.08698052]
[1738121748900,3.8188,3120.2,3119.6,3.925662]
[1738121749229,3.8188,3120.2,3119.7,0.08698052]
[1738121749428,3.8188,3120.2,3119.7,0.57045985]
[1738121751027,3.8188,3120.2,3119.7,3.77588985]
[1738121751233,3.8188,3120.2,3119.8,3.20531]
[1738121751234,3.0,3120.2,3119.8,3.20531]
[1738121751437,0.7941,3120.4,3119.9,3.20522]
[1738121751731,0.7941,3120.4,3120.0,0.08698052]
[1738121752499,0.7941,3120.4,3120.0,3.29209052]
[1738121754041,0.7941,3120.4,3120.0,0.08698052]
[1738121754408,3.7941,3120.4,3119.8,3.20531]
[1738121754607,3.7941,3120.4,3120.1,0.08698052]
[1738121754802,6.99883,3120.4,3119.8,3.20526]
[1738121755039,6.99883,3120.4,3120.2,0.08698052]
[1738121755259,0.7941,3120.4,3119.8,0.641075]
[1738121755567,3.20488,3120.3,3119.8,0.641075]
[1738121756458,3.20488,3120.3,3119.8,3.846395]
[1738121756911,3.7941,3120.4,3119.9,3.20522]
[1738121757050,3.7941,3120.4,3120.0,0.7051615]
[1738121757676,3.7941,3120.4,3120.0,3.9102815]
[1738121757886,6.43298667,3120.6,3120.0,3.9102815]
[1738121758199,0.22846667,3120.6,3120.1,3.20494]
[1738121758550,3.2047,3120.5,3120.0,0.7051615]
[1738121758792,3.2047,3120.5,3119.8,3.20528]
[1738121758994,3.20477,3120.4,3119.8,3.20524]
[1738121760053,3.20477,3120.4,3119.8,6.41051]
[1738121760256,3.20477,3120.4,3119.9,0.08638769]
[1738121760489,3.20477,3120.4,3119.9,3.29157769]
[1738121760695,3.20477,3120.4,3120.0,0.64968177]
[1738121760901,3.97652,3120.0,3119.9,0.08638769]
[1738121761215,0.7714,3120.2,3119.9,0.08638769]
[1738121761513,3.0,3120.3,3119.8,3.20525]
[1738121761656,3.0,3120.3,3120.0,0.08638769]
[1738121761856,3.0,3120.3,3119.8,0.64426406]
[1738121762106,6.20488,3120.3,3120.1,0.08638769]
[1738121762301,6.20488,3120.3,3119.7,3.20534]
[1738121762760,6.20488,3120.3,3119.8,0.08638769]
[1738121762960,6.20488,3120.3,3119.7,3.20534]
[1738121763290,6.20488,3120.3,3119.9,0.08638769]
[1738121763652,3.20494,3120.2,3119.7,3.20534]
[1738121763906,3.20494,3120.2,3120.0,0.08638769]
[1738121764105,6.20488,3120.3,3119.8,3.2053]
[1738121764262,3.0,3120.3,3120.1,0.08638769]
[1738121764458,3.0,3120.3,3119.8,3.2053]
[1738121764702,3.20482,3120.3,3120.2,0.08638769]
[1738121765065,3.0,3120.2,3119.8,3.2053]
[1738121765611,6.20495,3120.2,3119.6,3.20546]
[1738121765964,6.20495,3120.2,3119.6,3.923845]
[1738121768997,6.20495,3120.2,3119.4,0.7728]
[1738121768998,0.7925,3119.9,3119.4,0.7728]
[1738121769162,0.7925,3119.9,3119.5,3.20562]
[1738121771992,6.20496,3120.2,3119.6,3.20552]
[1738121772295,7.02926,3120.2,3119.6,4.00512]
[1738121772695,3.8243,3120.2,3119.7,3.23742364]
[1738121772894,3.8032,3120.4,3120.1,3.20502]
[1738121773790,3.0,3120.4,3120.1,3.20502]
[1738121774372,3.0,3120.4,3120.0,0.76]
[1738121774799,3.0,3120.4,3120.0,3.96504]
[1738121775168,3.0,3120.4,3120.1,0.08642253]
[1738121775502,3.0,3120.4,3120.1,3.29144253]
[1738121775891,3.0,3120.5,3120.1,3.29144253]
[1738121776499,3.0,3120.5,3120.3,3.20481]
[1738121776661,0.22846667,3120.6,3120.3,3.20481]
[1738121777068,0.22846667,3120.6,3120.4,0.08642253]
[1738121778369,0.22846667,3120.6,3120.4,0.91802253]
[1738121779363,0.22846667,3120.6,3120.4,4.12266253]
[1738121779701,0.22846667,3120.6,3120.4,0.82237441]
[1738121779870,0.22846667,3120.6,3120.4,0.08642253]
[1738121780371,0.22846667,3120.6,3120.5,0.08356525]
[1738121780584,0.22846667,3120.6,3120.2,4.6522152]
[1738121780870,0.22846667,3120.6,3120.5,0.08356525]
[1738121781192,0.22846667,3120.6,3120.5,0.08362799]
[1738121781386,0.22846667,3120.6,3120.2,4.6522152]
[1738121781580,0.22846667,3120.6,3120.5,0.08362799]
[1738121781780,0.22846667,3120.6,3120.3,0.53778715]
[1738121781981,0.8131,3120.5,3120.1,0.72565625]
[1738121782419,0.8131,3120.5,3120.1,3.93066625]
[1738121783482,0.8131,3120.5,3120.1,0.72565625]
[1738121784300,0.8131,3120.5,3120.1,3.93067625]
[1738121784506,0.22846667,3120.6,3120.1,3.93067625]
[1738121784507,0.22846667,3120.6,3120.2,4.23917863]
[1738121785025,0.22846667,3120.6,3120.2,3.2049]
[1738121785323,3.20467,3120.5,3120.1,0.72565625]
[1738121785506,3.20467,3120.5,3119.9,4.66388939]
[1738121785679,3.43306667,3120.6,3120.0,3.20504]
[1738121785883,3.43306667,3120.6,3120.1,3.20501]
[1738121786919,3.43306667,3120.6,3120.0,3.20511]
[1738121787819,3.43306667,3120.6,3120.1,3.20499]
[1738121788015,3.43306667,3120.6,3120.1,0.79008275]
[1738121788329,3.20464,3120.5,3119.9,3.86022939]
[1738121788731,0.8178,3120.5,3119.9,0.65507939]
[1738121788947,3.20523,3119.9,3119.5,5.38]
[1738121789102,3.20523,3119.9,3119.4,3.2057]
[1738121789530,3.20523,3119.9,3119.4,3.83446862]
[1738121789683,3.8178,3120.0,3119.5,3.90988686]
[1738121790090,3.8178,3120.0,3119.6,0.08353037]
[1738121790929,3.8178,3120.0,3119.6,3.28905037]
[1738121791573,0.8178,3120.0,3119.7,3.20542]
[1738121791822,3.8178,3119.9,3119.7,0.08134254]
[1738121792023,3.20539,3119.8,3119.2,3.20586]
[1738121792261,3.20539,3119.8,3119.2,6.41386]
[1738121792440,0.8178,3119.9,3119.4,3.20572]
[1738121794485,4.02304,3119.9,3119.4,3.20572]
[1738121794682,3.20535,3119.8,3119.2,3.20586]
[1738121794847,3.20535,3119.8,3119.3,0.46780979]
[1738121795049,4.02304,3119.9,3119.3,0.46780979]
[1738121795252,3.0,3120.0,3119.1,1.47223787]
[1738121795253,0.7834,3119.8,3119.1,0.64523787]
[1738121795552,3.20566,3119.5,3119.1,0.64523787]
[1738121795756,3.20574,3119.4,3119.1,0.64523787]
[1738121796178,3.20574,3119.4,3118.9,3.3075]
[1738121796359,3.20585,3119.3,3118.9,2.54]
[1738121796957,3.20574,3119.4,3118.9,2.54]
[1738121797365,3.20574,3119.4,3118.9,1.94300389]
[1738121797677,3.20574,3119.4,3118.9,0.64446789]
[1738121800188,3.7834,3119.5,3118.9,3.85069789]
[1738121800393,3.0,3119.5,3119.1,3.20601]
[1738121800682,3.8253,3119.7,3119.1,3.99021]
[1738121800981,3.8253,3119.7,3119.1,1.24766779]
[1738121801187,3.0,3119.5,3119.1,1.24766779]
[1738121803379,3.0,3119.5,3119.1,0.7842]
[1738121805009,3.0,3119.5,3119.2,0.08174652]
[1738121805221,3.20576,3119.4,3119.2,0.08174652]
[1738121805516,3.20576,3119.4,3118.9,0.8271]
[1738121805671,3.20576,3119.4,3119.3,0.08178135]
[1738121805880,0.7843,3118.8,3117.4,0.8271]
[1738121806179,3.20736,3117.9,3117.4,0.8271]
[1738121806575,3.20694,3118.3,3117.5,0.03207438]
[1738121806906,0.36073837,3119.3,3117.5,0.03207438]
[1738121806907,3.0,3118.6,3117.9,3.20723]
[1738121807102,3.20668,3118.5,3117.9,3.20723]
[1738121807479,6.20677,3118.4,3117.9,3.20723]
[1738121807679,3.0,3118.4,3117.9,3.20723]
[1738121809027,3.0,3118.4,3117.8,6.41635]
[1738121809230,3.0,3118.4,3117.8,7.459211]
[1738121810837,6.20677,3118.4,3117.8,4.250211]
[1738121811037,6.20677,3118.4,3117.8,3.20735]
[1738121811248,6.20677,3118.4,3117.7,3.20746]
[1738121812164,6.20677,3118.4,3117.8,3.20737]
[1738121813498,6.20677,3118.4,3117.9,0.0689294]
[1738121822802,3.0,3118.5,3118.0,0.7831]
[1738121823001,5.37,3119.0,3118.3,3.20681]
[1738121823002,6.1684,3119.0,3118.3,3.20681]
[1738121823299,9.37455,3119.0,3118.4,3.23882391]
[1738121823450,3.0,3118.9,3118.4,3.30858952]
[1738121824573,0.7984,3119.0,3118.6,3.20655]
[1738121824758,3.9752,3119.2,3118.6,3.20655]
[1738121824955,0.7692,3119.2,3118.7,0.03206244]
[1738121825315,0.7692,3119.2,3118.7,3.23846244]
[1738121825467,3.7692,3119.2,3118.7,3.23846244]
[1738121825668,3.0,3119.3,3118.9,3.20625]
[1738121825869,6.41117,3119.6,3118.9,3.20625]
[1738121825870,3.0,3119.4,3118.9,3.20625]
[1738121826392,6.20574,3119.4,3119.0,0.06936137]
[1738121826983,0.8024,3119.5,3119.0,0.90332098]
[1738121827290,6.41076,3119.8,3119.2,3.20594]
[1738121827291,0.8024,3119.7,3119.2,3.20594]
[1738121827454,3.8024,3119.7,3119.2,3.23799595]
[1738121827654,3.8024,3119.7,3119.2,3.20594]
[1738121827854,7.00784,3119.7,3119.3,0.06852514]
[1738121828052,7.00784,3119.7,3119.1,3.20595]
[1738121828291,7.00784,3119.7,3119.4,0.06852514]
[1738121828486,8.029159,3119.7,3119.1,3.20595]
[1738121828686,3.8024,3119.7,3119.5,0.06852514]
[1738121828894,3.8024,3119.7,3119.1,3.20595]
[1738121829097,3.8024,3119.7,3119.6,0.06852514]
[1738121829259,3.8024,3119.7,3119.1,3.20595]
[1738121829465,3.8024,3119.7,3119.6,0.06852514]
[1738121829673,3.8024,3119.7,3119.1,3.20595]
[1738121830178,3.8024,3119.7,3119.2,0.06852514]
[1738121830385,3.8024,3119.7,3119.2,3.27441514]
[1738121830701,3.8024,3119.7,3119.2,0.06852514]
[1738121830870,3.20554,3119.6,3119.2,0.06852514]
[1738121831174,3.20554,3119.6,3119.0,0.8019]
[1738121831374,3.20554,3119.6,3119.0,4.00804]
[1738121831692,3.20554,3119.6,3119.1,0.06835098]
[1738121831861,3.906334,3119.6,3119.1,0.06835098]
[1738121833136,3.20554,3119.6,3119.1,0.06835098]
[1738121837838,3.8024,3119.7,3119.1,3.27437098]
[1738121838847,7.00784,3119.7,3119.2,3.2059]
[1738121839050,7.00784,3119.7,3119.2,0.06824651]
[1738121839343,10.21336,3119.7,3119.0,7.84469872]
[1738121839580,7.00784,3119.7,3119.3,0.06824651]
[1738121839865,8.02915,3119.7,3119.4,0.06824651]
[1738121840037,8.02915,3119.7,3119.1,3.20605]
[1738121840233,8.02915,3119.7,3119.5,0.06824651]
[1738121840439,1.82371,3119.7,3119.1,3.23810703]